bitfinex-derivatives/quotes_ETHF0:USTF0_20250624
["timestamp","ask_amount","ask_price","bid_price","bid_amount"]
[1750801266716,0.93617564,2440.9,2440.8,2.0764815]
[1750801266912,0.93617564,2440.9,2440.8,2.1064815]
[1750801266913,25.90917564,2440.9,2440.8,2.1064815]
[1750801268112,25.90917564,2440.9,2440.8,2.0764815]
[1750801269115,25.90917564,2440.9,2440.8,0.7189815]
[1750801270716,24.973,2440.9,2440.8,0.7189815]
[1750801270919,2.21486397,2441.1,2441.0,0.65517]
[1750801271116,27.18786397,2441.1,2441.0,0.34794323]
[1750801271313,2.21486397,2441.2,2440.9,3.2078]
[1750801271520,25.91039277,2441.1,2441.0,0.65517]
[1750801271715,24.973,2441.1,2441.0,0.65517]
[1750801272019,8.66586397,2441.2,2440.9,3.2078]
[1750801272020,2.21486397,2441.2,2441.1,0.65515]
[1750801272219,33.63886397,2441.2,2441.1,0.65515]
[1750801272422,9.60332,2441.2,2441.1,0.65515]
[1750801272613,0.93745603,2441.2,2441.1,0.65515]
[1750801272814,9.36666397,2441.6,2441.5,0.65504]
[1750801273119,10.04056397,2441.6,2441.5,0.65504]
[1750801273310,35.01356397,2441.6,2441.5,0.65504]
[1750801273916,6.451,2441.6,2441.5,0.65504]
[1750801274214,2.88876397,2442.0,2441.9,0.65493]
[1750801274414,38.69882131,2442.0,2441.1,3.27516083]
[1750801274618,38.69882131,2442.0,2440.8,4.15770254]
[1750801274619,7.63752794,2441.2,2440.8,0.0637515]
[1750801274811,10.08302852,2440.9,2440.1,0.65541]
[1750801275116,10.08302852,2440.9,2440.2,0.69869228]
[1750801275117,5.42266397,2440.5,2440.2,0.69869228]
[1750801275322,26.46,2440.4,2440.3,0.65535]
[1750801276523,25.121,2440.4,2440.3,1.35404228]
[1750801276822,6.25500651,2440.5,2440.4,0.65534]
[1750801277016,31.41600651,2440.5,2440.4,1.35403228]
[1750801277422,31.41600651,2440.5,2440.4,1.04673196]
[1750801277621,3.2078,2440.8,2440.6,0.65526]
[1750801277819,25.167,2440.7,2440.6,1.35395228]
[1750801279420,25.167,2440.7,2440.6,1.36395228]
[1750801279818,25.189,2441.4,2440.8,1.63808]
[1750801280021,25.189,2441.4,2441.3,4.56158228]
[1750801280220,3.04720651,2441.6,2441.5,0.65504]
[1750801280430,25.201,2441.6,2441.5,1.35372228]
[1750801280729,10.21940651,2441.8,2441.5,0.69869228]
[1750801280933,10.21940651,2441.8,2441.7,1.35368228]
[1750801281126,35.42240651,2441.8,2441.7,1.35368228]
[1750801281325,35.42240651,2441.8,2441.7,0.65499]
[1750801281522,35.42240651,2441.8,2441.6,0.655]
[1750801281723,35.42240651,2441.8,2441.7,0.69869228]
[1750801282228,28.97240651,2441.8,2441.6,0.655]
[1750801282431,28.97240651,2441.8,2441.7,0.69869228]
[1750801282627,28.97240651,2441.8,2441.5,0.65503]
[1750801282929,28.97240651,2441.8,2441.5,1.35372228]
[1750801283329,28.97240651,2441.8,2441.5,1.0465595]
[1750801283529,28.97240651,2441.8,2441.5,0.69869228]
[1750801283728,1.63764,2441.5,2441.0,3.2078]
[1750801284028,3.2078,2440.8,2439.3,3.2078]
[1750801284327,0.65551,2439.8,2439.4,0.69869228]
[1750801284519,25.362,2439.9,2439.4,3.87720651]
[1750801284725,28.6008,2440.4,2439.8,0.69869228]
[1750801285034,28.6008,2440.4,2440.3,0.76244378]
[1750801285427,28.6008,2440.4,2440.3,1.44544378]
[1750801286632,25.393,2440.4,2440.3,1.44544378]
[1750801287132,25.393,2440.4,2440.3,2.10080378]
[1750801287429,25.393,2440.4,2440.3,1.44544378]
[1750801287633,25.393,2440.4,2440.3,2.10080378]
[1750801288231,25.393,2440.4,2440.3,1.44544378]
[1750801288534,25.393,2440.4,2440.3,2.10080378]
[1750801291036,1.3675,2440.7,2440.4,0.65531]
[1750801291236,26.39469502,2440.6,2440.4,0.34800479]
[1750801291433,25.388,2440.6,2440.4,0.38800479]
[1750801291737,25.388,2440.6,2440.5,0.69869228]
[1750801292033,31.39464549,2440.6,2439.2,3.2078]
[1750801292237,3.2078,2439.9,2439.5,1.35425228]
[1750801292438,26.7527,2439.8,2439.5,1.37425228]
[1750801293036,26.7527,2439.8,2439.6,0.65555]
[1750801293234,26.7527,2439.8,2439.5,0.69869228]
[1750801293435,26.7527,2439.8,2439.6,0.65554]
[1750801293637,26.7527,2439.8,2439.7,0.65552]
[1750801293936,25.395,2439.8,2439.7,1.35421228]
[1750801296835,4.5972,2440.1,2439.8,0.65548]
[1750801297037,32.101,2440.0,2439.8,1.35417228]
[1750801297538,32.101,2440.0,2439.5,3.2078]
[1750801297740,25.406,2439.9,2439.8,1.35418228]
[1750801297940,25.406,2439.9,2439.8,0.69869228]
[1750801298136,25.406,2439.9,2439.7,0.65552]
[1750801298441,25.406,2439.9,2439.8,0.69869228]
[1750801298641,25.404,2439.9,2439.8,1.35419228]
[1750801298936,25.401,2439.9,2439.8,0.6555]
[1750801299340,1.4359,2440.0,2439.8,0.6555]
[1750801299542,25.399,2439.9,2439.8,0.6555]
[1750801299941,25.395,2439.9,2439.8,0.6555]
[1750801302048,25.395,2439.9,2439.8,0.7255]
[1750801302539,1.4359,2440.0,2439.8,0.7255]
[1750801302741,8.1199,2440.0,2439.9,0.65547]
[1750801302938,33.4969,2440.0,2439.9,0.65547]
[1750801305339,32.061,2440.0,2439.9,1.35416228]
[1750801305642,25.377,2440.2,2440.1,0.65542]
[1750801305844,25.377,2440.2,2440.1,1.35411228]
[1750801306149,8.6747,2440.6,2440.3,0.65535]
[1750801306448,26.38570951,2440.5,2440.3,0.34802081]
[1750801306654,26.03531,2440.5,2440.0,1.9853]
[1750801306942,1.00567766,2440.4,2440.2,0.69869228]
[1750801307143,29.24314,2440.5,2440.2,1.35407228]
[1750801307340,35.6718802,2440.5,2440.0,0.6513]
[1750801307544,0.65538,2440.3,2440.0,1.30673]
[1750801307748,32.076,2440.2,2440.0,1.30673]
[1750801310255,32.076,2440.2,2440.0,1.3704815]
[1750801310450,32.076,2440.2,2440.1,1.35411228]
[1750801311447,6.684,2440.3,2440.2,0.65538]
[1750801311649,32.09,2440.3,2440.2,1.35407228]
[1750801311846,32.09,2440.3,2440.2,0.65538]
[1750801312050,32.09,2440.3,2440.1,0.6554]
[1750801312548,32.09,2440.3,2440.2,0.39134792]
[1750801312745,33.09827844,2440.3,2440.2,0.39134792]
[1750801312946,33.09827844,2440.3,2440.1,0.6554]
[1750801313142,32.09,2440.3,2440.2,0.39134792]
[1750801313347,33.10135899,2440.3,2440.1,0.6554]
[1750801313548,32.74536,2440.3,2440.2,0.39134792]
[1750801313752,33.10136347,2440.3,2440.1,0.39134792]
[1750801313954,1.01136347,2440.2,2440.1,0.39134792]
[1750801314160,1.01136347,2440.2,2440.1,0.65542]
[1750801314452,1.01136347,2440.2,2440.0,1.3704815]
[1750801314650,6.684,2440.3,2440.1,1.04674792]
[1750801314840,26.40756234,2440.2,2440.1,1.04674792]
[1750801315047,26.40756234,2440.2,2440.0,0.7150515]
[1750801315244,25.396,2440.2,2440.1,1.04676792]
[1750801315442,26.40765143,2440.2,2440.1,1.04676792]
[1750801315642,26.40765143,2440.2,2440.1,0.65542]
[1750801318456,26.40765143,2440.2,2440.1,0.34807737]
[1750801320159,1.01165143,2440.2,2440.1,0.73942529]
[1750801320460,33.03365143,2440.2,2440.1,0.73942529]
[1750801320658,33.03365143,2440.2,2440.1,2.81802529]
[1750801321158,1.01165143,2440.2,2440.1,2.81802529]
[1750801321360,26.36065143,2440.2,2440.1,2.81802529]
[1750801323764,26.36065143,2440.2,2440.1,1.40562529]
[1750801324360,26.36065143,2440.2,2440.1,1.05754792]
[1750801324563,26.36065143,2440.2,2440.1,1.71296792]
[1750801325458,1.01165143,2440.2,2440.1,3.08601942]
[1750801325764,26.33465143,2440.2,2440.1,3.08601942]
[1750801327460,5.64406572,2440.8,2440.2,1.63848]
[1750801327660,25.34,2440.9,2440.8,0.65523]
[1750801327864,25.34,2440.9,2440.8,1.76297792]
[1750801328160,28.3877363,2440.9,2440.8,1.76297792]
[1750801329672,28.4077363,2440.9,2440.8,1.76297792]
[1750801330166,6.2555363,2441.1,2441.0,0.65517]
[1750801330366,31.6105363,2441.1,2441.0,0.73927208]
[1750801331170,3.0477363,2441.1,2441.0,0.73927208]
[1750801331470,28.4097363,2441.1,2441.0,0.73927208]
[1750801332362,9.7067363,2441.3,2441.2,0.65512]
[1750801332566,6.659,2441.3,2441.2,1.04646792]
[1750801332770,6.34386572,2441.7,2441.5,0.65503]
[1750801332771,6.9553363,2441.7,2441.5,0.65503]
[1750801332972,12.9145363,2441.7,2441.6,0.65501]
[1750801333276,38.2765363,2441.7,2441.6,0.65501]
[1750801333575,3.2078,2441.7,2441.6,1.04635792]
[1750801333764,6.659,2441.8,2441.7,0.65499]
[1750801334077,32.016,2441.8,2441.7,1.04633792]
[1750801334376,32.016,2441.8,2441.7,0.65499]
[1750801334878,32.035,2441.8,2441.6,0.65499]
[1750801335080,32.035,2441.8,2441.7,1.04633792]
[1750801335580,6.659,2441.8,2441.7,1.04633792]
[1750801335781,32.02,2441.8,2441.7,1.04633792]
[1750801336079,6.658,2442.0,2441.8,0.65496]
[1750801336278,6.658,2442.0,2441.9,1.07794792]
[1750801336478,32.025,2442.0,2441.9,1.07794792]
[1750801337881,32.015,2442.0,2441.9,1.73287792]
[1750801338085,32.015,2442.0,2441.9,1.07794792]
[1750801338586,6.2555363,2442.1,2442.0,0.65491]
[1750801338784,31.6075363,2442.1,2442.0,0.39134792]
[1750801339387,6.2555363,2442.1,2442.0,0.39134792]
[1750801339684,28.5558,2442.1,2442.0,1.04625792]
[1750801339885,28.5558,2442.1,2442.0,2.38355792]
[1750801340280,25.351,2442.1,2442.0,2.38355792]
[1750801342688,25.351,2442.1,2442.0,1.72864792]
[1750801342891,25.351,2442.1,2442.0,2.38355792]
[1750801343084,25.351,2442.1,2442.0,1.72864792]
[1750801343888,26.00588,2442.1,2442.0,1.72864792]
[1750801344388,25.351,2442.1,2442.0,1.72864792]
[1750801346287,26.00588,2442.1,2442.0,1.72864792]
[1750801346988,26.00588,2442.1,2442.0,0.39134792]
[1750801347885,0.65491,2442.0,2441.9,0.6866]
[1750801348085,6.0954726,2442.0,2441.3,3.2078]
[1750801348288,6.0954726,2442.0,2440.9,1.63795]
[1750801348289,3.0477363,2441.4,2440.9,4.627]
[1750801348589,3.0477363,2441.2,2441.1,0.39134792]
[1750801348787,28.3837363,2441.2,2441.1,0.04]
[1750801349091,29.0388563,2441.2,2441.1,0.04]
[1750801350387,28.3837363,2441.2,2441.1,0.04]
[1750801351288,28.3837363,2441.2,2441.1,0.69515]
[1750801351682,25.322,2441.4,2441.1,0.43134792]
[1750801351888,25.322,2441.4,2441.3,0.65509]
[1750801352087,25.322,2441.4,2441.3,1.04643792]
[1750801352988,25.406,2441.4,2441.3,1.04643792]
[1750801353486,25.406,2441.4,2440.9,3.8737]
[1750801353487,0.65511,2441.3,2441.1,0.65514]
[1750801353688,0.65514,2441.2,2441.1,0.40134792]
[1750801353885,4.3847763,2441.2,2441.1,0.01]
[1750801354892,5.7969763,2441.2,2441.1,0.01]
[1750801356591,5.7969763,2441.2,2440.8,0.65521]
[1750801356592,0.65519,2441.0,2440.8,0.65522]
[1750801356794,25.397,2440.9,2440.8,0.02]
[1750801357293,25.397,2440.9,2440.8,0.67523]
[1750801357489,25.397,2440.9,2440.8,0.02]
[1750801357695,26.8092,2440.9,2440.8,0.65523]
[1750801357898,26.8092,2440.9,2440.7,0.65524]
[1750801358096,27.46441,2440.9,2440.7,1.04658792]
[1750801358394,27.46441,2440.9,2440.7,0.65525]
[1750801358991,26.8092,2440.9,2440.7,0.65525]
[1750801359191,26.8092,2440.9,2440.8,0.65523]
[1750801359586,3.2078,2441.1,2441.0,0.65518]
[1750801359794,28.6308,2441.1,2441.0,0.65518]
[1750801360096,3.2078,2441.1,2441.0,1.04652792]
[1750801360293,3.0477363,2441.5,2441.4,0.65506]
[1750801360505,36.11894797,2441.5,2441.4,0.65506]
[1750801360690,29.47794797,2441.5,2441.4,0.65506]
[1750801360890,4.04794797,2441.5,2441.4,0.65506]
[1750801361191,29.47894797,2441.5,2441.4,0.65506]
[1750801361600,29.47694797,2441.5,2441.4,0.65506]
[1750801362288,26.42921167,2441.5,2441.4,0.65506]
[1750801362492,26.42921167,2441.5,2441.4,0.34786559]
[1750801362700,1.00021167,2441.5,2441.4,0.34786559]
[1750801362906,26.41821167,2441.5,2441.4,0.34786559]
[1750801366107,25.418,2441.5,2441.4,0.34786559]
[1750801366306,26.40659678,2441.5,2441.1,1.63785]
[1750801366506,25.406,2441.5,2441.4,1.04641792]
[1750801367008,25.406,2441.5,2441.4,0.65507]
[1750801367307,26.40659826,2441.5,2441.4,0.65507]
[1750801367605,10.5433,2441.6,2441.5,0.65504]
[1750801367807,29.59441925,2441.6,2441.5,0.65504]
[1750801367998,28.5938,2441.6,2441.5,0.65504]
[1750801369206,29.59480941,2441.6,2441.5,0.65504]
[1750801369406,28.5938,2441.6,2441.5,0.65504]
[1750801369606,29.59480911,2441.6,2441.5,0.65504]
[1750801370004,29.58080911,2441.6,2441.5,0.65504]
[1750801371706,28.5798,2441.6,2441.5,0.65504]
[1750801372209,28.5798,2441.6,2441.5,0.34786001]
[1750801372610,25.372,2441.6,2441.5,0.34786001]
[1750801372805,26.37318651,2441.6,2441.5,0.34786001]
[1750801373004,27.02820651,2441.6,2441.5,0.34786001]
[1750801374210,26.37318651,2441.6,2441.5,0.34786001]
[1750801374408,27.02820651,2441.6,2441.5,0.34786001]
[1750801374809,26.37318651,2441.6,2441.5,0.34786001]
[1750801378311,27.02820651,2441.6,2441.5,0.65504]
[1750801378512,26.37318651,2441.6,2441.5,0.65504]
[1750801383210,1.00118651,2441.6,2441.5,0.65504]
[1750801383515,26.28718651,2441.6,2441.5,0.65504]
[1750801384215,29.331543,2441.6,2441.5,0.34786146]
[1750801385409,29.986563,2441.6,2441.5,0.34786146]
[1750801387212,29.986563,2441.6,2441.3,2.0467]
[1750801387411,1.65623651,2441.5,2441.4,0.65506]
[1750801387916,1.65623651,2441.5,2441.4,1.04640792]
[1750801388918,0.65505,2441.5,2441.4,1.04640792]
[1750801389621,1.65643653,2441.5,2441.4,1.04640792]
[1750801390211,1.65643653,2441.5,2441.4,0.73923216]
[1750801390619,1.00138653,2441.5,2441.4,0.75923216]
[1750801390818,1.00138653,2441.5,2441.4,2.19273216]
[1750801391018,1.65642653,2441.5,2441.4,2.19273216]
[1750801392813,1.65642653,2441.5,2441.4,0.41134792]
[1750801393118,1.65642653,2441.5,2441.3,0.7141]
[1750801393119,0.65507,2441.4,2441.3,0.7141]
[1750801393319,36.72825653,2441.4,2441.3,0.7141]
[1750801393619,33.52045653,2441.4,2441.3,0.7141]
[1750801393919,36.72825653,2441.4,2441.3,0.7141]
[1750801396220,36.72825653,2441.4,2441.3,0.40689016]
[1750801400128,36.07318653,2441.4,2441.3,0.40689016]
[1750801400324,36.07318653,2441.4,2441.3,1.06199016]
[1750801400723,36.07318653,2441.4,2441.3,0.40689016]
[1750801401223,36.72825653,2441.4,2441.3,0.40689016]
[1750801401624,36.72825653,2441.4,2441.3,1.06199016]
[1750801402128,36.72825653,2441.4,2441.3,0.40689016]
[1750801402325,36.72825653,2441.4,2441.3,0.09968122]
[1750801402828,33.52045653,2441.4,2441.3,0.09968122]
[1750801403225,33.52045653,2441.4,2441.3,0.75478122]
[1750801403816,33.52045653,2441.4,2441.3,1.14612914]
[1750801404526,32.86538653,2441.4,2441.3,1.14612914]
[1750801404929,33.52045653,2441.4,2441.3,1.14612914]
[1750801405229,32.86538653,2441.4,2441.3,1.14612914]
[1750801406027,33.52045653,2441.4,2441.3,1.14612914]
[1750801406624,33.52045653,2441.4,2441.3,0.49102914]
[1750801406831,0.6551,2441.3,2441.2,0.705]
[1750801407026,0.65513,2441.2,2441.0,0.65515]
[1750801407232,0.65511,2441.3,2441.2,0.39134792]
[1750801407425,26.85053774,2441.3,2441.2,1.04646792]
[1750801407733,26.85053774,2441.3,2441.2,0.39134792]
[1750801408034,26.19542774,2441.3,2441.2,0.39134792]
[1750801408231,26.19542774,2441.3,2441.2,0.08413111]
[1750801408528,26.18942774,2441.3,2441.2,0.73925111]
[1750801409931,26.84452774,2441.3,2441.2,0.08413111]
[1750801410131,26.18942774,2441.3,2441.2,0.08413111]
[1750801411035,26.84452774,2441.3,2441.2,0.08413111]
[1750801411332,26.18942774,2441.3,2441.2,0.73925111]
[1750801411535,26.18942774,2441.3,2441.2,0.08413111]
[1750801411731,26.18942774,2441.3,2441.2,0.73925111]
[1750801412430,26.18942774,2441.3,2441.2,0.08413111]
[1750801412626,26.18942774,2441.3,2441.2,0.73925111]
[1750801414532,32.82722774,2441.3,2440.7,3.2078]
[1750801414739,0.65529,2440.6,2440.4,0.65532]
[1750801415035,7.20229,2440.6,2440.5,0.08413111]
[1750801415228,33.51645837,2440.6,2440.5,0.08413111]
[1750801415832,32.86116837,2440.6,2440.3,0.7211]
[1750801416141,32.50128,2440.6,2440.5,0.08413111]
[1750801416337,33.51505676,2440.6,2440.5,0.08413111]
[1750801416540,0.65534,2440.4,2440.3,0.7211]
[1750801416836,26.96111676,2440.4,2440.3,0.7211]
[1750801417041,26.96111676,2440.4,2440.3,0.80523111]
[1750801418237,25.94734,2440.4,2440.3,0.08413111]
[1750801422643,0.65539,2440.2,2440.1,1.3632]
[1750801422844,25.92339,2440.2,2440.1,1.7132]
[1750801423041,25.92339,2440.2,2440.1,1.79733111]
[1750801423443,25.92339,2440.2,2440.1,2.45275111]
[1750801424142,25.92339,2440.2,2440.1,1.79733111]
[1750801424949,25.92339,2440.2,2440.1,0.08413111]
[1750801425648,25.92339,2440.2,2440.1,1.40993111]
[1750801427651,3.2078,2440.6,2440.1,1.40993111]
[1750801427846,3.86308,2440.6,2440.5,0.08413111]
[1750801428050,0.65531,2440.5,2440.4,0.65533]
[1750801428251,29.0961,2440.6,2440.5,0.73944111]
[1750801428454,28.4408,2440.6,2440.5,0.73944111]
[1750801428652,29.09608,2440.6,2440.5,0.65531]
[1750801428852,25.88828,2440.6,2440.5,0.65531]
[1750801430753,25.88828,2440.6,2440.2,0.65538]
[1750801430754,0.65538,2440.3,2440.2,0.65538]
[1750801431055,0.65539,2440.2,2440.0,3.9163]
[1750801431250,0.65542,2440.1,2440.0,3.2078]
[1750801431454,0.65544,2440.1,2439.9,0.65546]
[1750801431645,25.87945,2440.0,2439.9,0.08413111]
[1750801431850,25.224,2440.0,2439.8,0.65548]
[1750801432048,25.224,2440.0,2439.7,3.2078]
[1750801432049,25.87945,2440.0,2439.9,0.08413111]
[1750801432449,0.65549,2439.9,2439.8,0.6555]
[1750801432848,25.87946,2440.0,2439.9,0.73960111]
[1750801433244,25.87946,2440.0,2439.9,0.08413111]
[1750801433645,38.68061649,2440.0,2439.9,0.08413111]
[1750801433849,0.65553,2439.7,2439.5,0.65557]
[1750801434054,25.249,2439.6,2439.4,3.86339]
[1750801434355,31.798,2439.6,2439.5,0.65558]
[1750801434553,31.798,2439.6,2439.5,0.73971111]
[1750801436052,31.798,2439.6,2439.5,0.76971111]
[1750801436251,6.549,2439.7,2439.6,0.65554]
[1750801436451,31.801,2439.7,2439.6,0.08413111]
[1750801436652,6.55,2439.9,2439.7,0.65551]
[1750801436847,25.25,2439.8,2439.7,0.73964111]
[1750801437153,25.251,2439.8,2439.7,0.65551]
[1750801437354,25.251,2439.8,2439.7,0.73964111]
[1750801437554,6.55,2439.9,2439.8,0.65549]
[1750801437746,31.806,2439.9,2439.8,2.76632111]
[1750801438146,25.253,2439.9,2439.8,2.76632111]
[1750801438758,25.253,2439.9,2439.8,2.82632111]
[1750801439057,25.253,2439.9,2439.8,2.76632111]
[1750801439258,3.2078,2440.0,2439.9,0.65547]
[1750801439453,35.66625,2440.0,2439.9,0.08413111]
[1750801439659,35.66625,2440.0,2439.7,0.65552]
[1750801439660,38.71061649,2440.0,2439.7,0.65552]
[1750801439859,38.71061649,2440.0,2439.9,0.08413111]
[1750801439860,12.80215649,2440.0,2439.9,0.08413111]
[1750801440049,38.06015649,2440.0,2439.9,0.08413111]
[1750801440451,38.71560649,2440.0,2439.9,0.08413111]
[1750801440653,0.65547,2439.9,2439.5,2.0267]
[1750801440852,0.65547,2439.9,2439.6,0.65553]
[1750801440853,25.269,2439.8,2439.6,0.65553]
[1750801441055,25.269,2439.8,2439.5,1.30816]
[1750801441356,25.269,2439.8,2439.3,0.7141]
[1750801441357,3.2078,2439.7,2439.3,0.7141]
[1750801441553,3.2078,2439.7,2439.5,0.65558]
[1750801441759,3.2078,2439.7,2439.6,0.08413111]
[1750801442456,35.2628,2439.7,2439.6,0.08413111]
[1750801443162,0.65562,2439.4,2439.1,0.65568]
[1750801443462,44.31825401,2439.7,2439.1,0.65568]
[1750801443463,27.5234,2439.3,2439.1,0.65568]
[1750801443658,27.5234,2439.3,2439.0,0.6557]
[1750801443659,25.53,2439.2,2439.0,0.6557]
[1750801443856,26.8692,2439.2,2439.0,0.73983111]
[1750801444056,25.53,2439.2,2439.0,0.73983111]
[1750801444557,3.2078,2439.1,2439.0,0.73983111]
[1750801446561,2.43443519,2440.0,2439.8,0.65549]
[1750801446754,25.521,2440.0,2439.7,3.2078]
[1750801446960,25.521,2440.0,2439.9,0.73960111]
[1750801447263,25.521,2440.0,2439.9,0.08413111]
[1750801447466,26.2007,2440.0,2439.9,0.08413111]
[1750801448059,26.2007,2440.0,2439.9,0.73960111]
[1750801448469,26.2007,2440.0,2439.9,0.08413111]
[1750801448772,26.2007,2440.0,2439.9,0.73960111]
[1750801450867,27.21188129,2440.0,2439.9,0.73960111]
[1750801451070,26.2007,2440.0,2439.9,0.08413111]
[1750801451269,26.2007,2440.0,2439.9,0.73960111]
[1750801451470,27.21187156,2440.0,2439.9,0.08413111]
[1750801451670,27.21187156,2440.0,2439.9,0.73960111]
[1750801452665,27.21187156,2440.0,2439.9,0.65547]
[1750801452865,29.24505649,2440.0,2439.9,0.73960111]
[1750801453066,29.24505649,2440.0,2439.9,0.08413111]
[1750801453369,30.25657004,2440.0,2439.9,0.73960111]
[1750801453563,30.25657004,2440.0,2439.8,0.65549]
[1750801453771,29.24505649,2440.0,2439.9,0.08413111]
[1750801453967,30.25656624,2440.0,2439.9,0.08413111]
[1750801454167,29.24505649,2440.0,2439.8,0.6555]
[1750801454367,29.24505649,2440.0,2439.9,0.08413111]
[1750801454771,0.65547,2439.9,2439.7,0.65551]
[1750801454969,25.504,2439.8,2439.7,0.65551]
[1750801455573,25.504,2439.8,2439.7,3.86331]
[1750801457167,4.37951649,2440.0,2439.8,0.6555]
[1750801457367,32.255,2439.9,2439.8,0.6555]
[1750801457768,33.92240389,2439.9,2439.7,3.86331]
[1750801457971,32.91047,2439.9,2439.7,3.86331]
[1750801459070,32.26,2439.8,2439.7,3.86331]
[1750801459470,33.272771,2439.8,2439.5,1.3627]
[1750801459665,0.65553,2439.7,2439.6,0.08413111]
[1750801460266,1.66883493,2439.7,2439.6,0.08413111]
[1750801465576,0.65555,2439.6,2439.5,3.2078]
[1750801465783,27.85695493,2439.6,2439.5,0.08413111]
[1750801466277,27.85695493,2439.6,2439.5,3.29193111]
[1750801467082,27.85695493,2439.6,2439.5,3.94751111]
[1750801467579,27.85695493,2439.6,2439.5,3.29193111]
[1750801468784,27.85695493,2439.6,2439.5,3.94751111]
[1750801468982,27.20140493,2439.6,2439.5,3.94751111]
[1750801469283,27.85695493,2439.6,2439.5,3.94751111]
[1750801469484,27.86053792,2439.6,2439.5,3.94751111]
[1750801469672,32.86053792,2439.6,2439.5,3.2078]
[1750801469878,33.58768792,2439.6,2439.0,0.6557]
[1750801470175,3.04435649,2439.4,2439.1,0.08413111]
[1750801470380,27.17253792,2439.3,2439.1,0.73981111]
[1750801470583,26.15565,2439.3,2439.1,0.65568]
[1750801470883,0.7079,2439.2,2439.1,0.65568]
[1750801471977,1.72407661,2439.2,2439.1,0.65568]
[1750801472176,1.72407661,2439.2,2439.1,0.73981111]
[1750801472376,2.37973661,2439.2,2439.1,0.73981111]
[1750801473076,0.65566,2439.2,2439.1,0.73981111]
[1750801473275,7.39965,2439.3,2439.2,0.65566]
[1750801473477,33.91568525,2439.3,2439.2,1.43279111]
[1750801474084,33.91568525,2439.3,2439.2,0.08413111]
[1750801474377,33.91568525,2439.3,2439.2,0.73979111]
[1750801474773,41.30439174,2439.3,2438.9,3.2078]
[1750801474978,41.30439174,2439.3,2438.2,11.42813649]
[1750801474979,3.04435649,2439.0,2438.6,0.65581]
[1750801475179,0.65578,2438.8,2438.7,0.08413111]
[1750801475481,1.67181525,2438.8,2438.7,0.08413111]
[1750801475681,2.33271525,2438.8,2438.7,0.08413111]
[1750801476079,34.59871525,2438.8,2438.7,0.08413111]
[1750801476582,2.33271525,2438.8,2438.6,0.65581]
[1750801476783,32.264,2438.7,2438.6,0.65581]
[1750801477180,32.264,2438.7,2438.6,0.73994111]
[1750801478485,25.518,2438.7,2438.6,0.73994111]
[1750801479785,25.518,2438.7,2438.6,0.65581]
[1750801480682,0.65578,2438.8,2438.7,0.6558]
[1750801480882,25.495,2438.8,2438.7,0.6558]
[1750801481082,26.15077,2438.8,2438.7,0.6558]
[1750801481483,26.15077,2438.8,2438.4,2.0775]
[1750801481484,28.53935649,2438.8,2438.4,0.65585]
[1750801481686,2.8296,2438.7,2438.5,0.73997111]
[1750801481884,25.505,2438.6,2438.5,0.73998111]
[1750801482786,0.7081,2438.7,2438.6,0.65582]
[1750801482987,32.9561,2438.7,2438.6,0.73995111]
[1750801483186,32.9561,2438.7,2438.6,0.65582]
[1750801483391,37.9541,2438.7,2438.3,0.65589]
[1750801483590,3.70021649,2438.5,2438.4,0.08413111]
[1750801483795,0.65588,2438.4,2438.2,3.86371]
[1750801483984,25.537,2438.3,2438.2,3.2078]
[1750801484184,26.2258,2438.3,2438.2,3.94786111]
[1750801486597,25.537,2438.3,2438.2,3.94786111]
[1750801487596,1.34444,2438.6,2438.5,0.65585]
[1750801487795,33.63144,2438.6,2438.5,0.73998111]
[1750801487998,1.34444,2438.6,2438.5,0.65585]
[1750801488294,0.65586,2438.5,2438.4,0.65586]
[1750801488598,1.99776,2438.5,2438.4,0.65586]
[1750801488794,1.3419,2438.5,2438.4,0.65586]
[1750801488996,1.99775,2438.5,2438.4,0.65586]
[1750801489198,5.04210649,2438.5,2438.3,0.65589]
[1750801489403,1.3318,2438.4,2438.3,0.65589]
[1750801489888,3.04435649,2438.5,2438.4,0.65588]
[1750801491296,3.70020649,2438.5,2438.2,3.2078]
[1750801491499,6.746,2438.7,2438.6,0.65582]
[1750801491699,0.65582,2438.7,2438.5,0.65584]
[1750801491895,32.302,2438.6,2438.5,0.65585]
[1750801492094,6.746,2438.7,2438.6,0.6558]
[1750801492292,32.95779,2438.7,2438.6,0.6558]
[1750801492492,32.95779,2438.7,2438.5,0.65582]
[1750801493197,0.65583,2438.6,2438.4,0.65588]
[1750801493402,3.70018649,2438.6,2438.4,0.65585]
[1750801493599,3.70018649,2438.6,2438.4,0.73998111]
[1750801493807,33.66885,2438.5,2438.4,0.65585]
[1750801494500,33.013,2438.5,2438.4,0.73998111]
[1750801494901,33.66886,2438.5,2438.4,0.73998111]
[1750801495202,33.013,2438.5,2438.4,0.73998111]
[1750801496705,33.013,2438.5,2438.4,0.08413111]
[1750801497003,33.66886,2438.5,2438.4,0.08413111]
[1750801497606,0.65589,2438.4,2438.3,2.0715]
[1750801498100,4.84729,2438.8,2438.3,1.49973111]
[1750801498101,0.65583,2438.7,2438.3,1.49973111]
[1750801498308,0.65583,2438.7,2438.6,0.65583]
[1750801498603,33.92454129,2438.7,2438.5,0.73997111]
[1750801498907,7.40183,2438.7,2438.6,1.4051]
[1750801499107,33.91998465,2438.7,2438.6,1.4051]
[1750801499908,33.91098465,2438.7,2438.6,1.4051]
[1750801500605,36.95334114,2438.7,2438.6,1.4051]
[1750801500796,36.95334114,2438.7,2438.6,2.06093]
[1750801500997,33.25315465,2438.7,2438.6,2.06093]
[1750801501294,27.15696465,2438.7,2438.6,1.4051]
[1750801501497,26.50115465,2438.7,2438.6,2.06093]
[1750801501695,1.01415465,2438.7,2438.6,1.4051]
[1750801502002,33.24215465,2438.7,2438.6,2.06093]
[1750801502209,1.01415465,2438.7,2438.6,2.06093]
[1750801502506,0.6598,2439.0,2438.8,0.65576]
[1750801502805,33.23821928,2438.9,2438.8,0.65576]
[1750801503009,0.65579,2438.8,2438.6,2.06093]